bitfinex/quotes_BTCUSD_20240815
["timestamp","ask_amount","ask_price","bid_price","bid_amount"]
[1723728993909,0.01758647,59473.0,59454.0,0.03388]
[1723728994192,0.01758647,59473.0,59458.0,0.03388]
[1723728994433,0.006,59466.0,59464.0,0.03388]
[1723728994919,0.006,59466.0,59465.0,0.01512605]
[1723728995423,0.012,59466.0,59465.0,0.01512605]
[1723728995630,0.006,59466.0,59465.0,0.01512605]
[1723728995838,0.006,59466.0,59460.0,0.03388]
[1723728996040,0.007,59466.0,59464.0,0.013]
[1723728996250,0.001,59466.0,59461.0,0.01515468]
[1723728996459,0.001,59466.0,59465.0,0.01512605]
[1723728996671,0.002,59466.0,59465.0,0.013]
[1723728996882,0.0002,59479.0,59465.0,0.18289908]
[1723728997088,0.003,59473.0,59466.0,0.27875454]
[1723728997294,0.003,59473.0,59466.0,0.1072]
[1723728997517,0.0002,59479.0,59467.0,0.18665885]
[1723728997922,0.0002,59479.0,59467.0,0.01510431]
[1723728997923,0.336266,59477.0,59467.0,0.01510431]
[1723728998129,0.50782554,59476.0,59467.0,0.01510431]
[1723728998331,0.08577727,59478.0,59466.0,0.1072]
[1723728998332,0.0002,59479.0,59466.0,0.1072]
[1723728998532,0.0002,59479.0,59468.0,0.01509238]
[1723728998742,0.0002,59479.0,59467.0,0.01509435]
[1723728998953,0.0002,59479.0,59469.0,0.01508004]
[1723728999171,0.0002,59479.0,59470.0,0.336303]
[1723728999383,0.0002,59479.0,59470.0,0.01507288]
[1723728999598,0.25390727,59478.0,59470.0,0.01507288]
[1723728999805,0.0022,59479.0,59469.0,0.168152]
[1723729000029,0.001,59473.0,59472.0,0.168146]
[1723729000454,0.0002,59479.0,59478.0,0.168129]
[1723729000871,0.0002,59479.0,59478.0,0.01501662]
[1723729001315,0.0002,59479.0,59475.0,0.168137]
[1723729001587,0.0002,59479.0,59472.0,0.1957]
[1723729001799,0.0002,59479.0,59478.0,0.003]
[1723729002003,1.01238654,59479.0,59478.0,0.003]
[1723729002222,1.01238654,59479.0,59478.0,0.01801662]
[1723729002223,0.81182279,59479.0,59478.0,0.01801662]
[1723729002426,1.50732879,59479.0,59478.0,0.003]
[1723729002644,1.46587579,59479.0,59478.0,0.003]
[1723729002851,0.0002,59479.0,59478.0,0.003]
[1723729002973,0.0002,59479.0,59478.0,0.168129]
[1723729002974,0.0022,59479.0,59478.0,0.168129]
[1723729003341,0.0022,59479.0,59478.0,0.29342693]
[1723729003472,0.0022,59479.0,59478.0,0.12529793]
[1723729003714,0.170326,59479.0,59478.0,0.01499793]
[1723729003940,0.170326,59479.0,59475.0,0.003]
[1723729003941,0.0002,59479.0,59475.0,0.003]
[1723729004217,0.168327,59479.0,59478.0,0.01499793]
[1723729004455,0.19475454,59479.0,59466.0,0.1103]
[1723729004678,0.36268454,59478.0,59467.0,0.01507887]
[1723729004913,0.08577727,59472.0,59467.0,0.01507887]
[1723729005195,0.023,59471.0,59467.0,0.01507887]
[1723729005431,0.023,59471.0,59460.0,0.1429]
[1723729005633,0.336305,59470.0,59460.0,0.1429]
[1723729005849,0.08577727,59464.0,59461.0,0.01504214]
[1723729006069,0.08577727,59464.0,59445.0,0.1042]
[1723729006070,0.336349,59462.0,59445.0,0.1042]
[1723729006264,0.08577727,59458.0,59449.0,0.51466362]
[1723729006471,0.08577727,59458.0,59446.0,0.01515371]
[1723729006472,0.1682,59453.0,59446.0,0.01515371]
[1723729006695,0.08577727,59452.0,59438.0,0.1061]
[1723729006911,0.08577727,59452.0,59439.0,0.01520384]
[1723729007131,0.35398127,59452.0,59439.0,0.01520384]
[1723729007341,0.18577727,59452.0,59439.0,0.01520384]
[1723729007564,0.168207,59451.0,59440.0,0.0337]
[1723729007829,0.336383,59456.0,59440.0,0.0337]
[1723729007830,0.023,59457.0,59444.0,0.0337]
[1723729008059,0.023,59462.0,59444.0,0.0337]
[1723729008266,1.300221,59462.0,59461.0,0.005]
[1723729008509,1.200221,59462.0,59461.0,0.005]
[1723729008750,0.336388,59456.0,59444.0,0.0337]
[1723729009022,0.1,59455.0,59444.0,0.004]
[1723729009280,0.1,59455.0,59446.0,0.0437]
[1723729009281,0.001,59453.0,59446.0,0.0437]
[1723729009438,0.023,59453.0,59447.0,0.01517614]
[1723729009651,0.01759379,59452.0,59447.0,0.01517614]
[1723729009860,0.01759379,59452.0,59451.0,0.504616]
[1723729010070,0.001,59462.0,59461.0,0.840885]
[1723729010290,0.001,59462.0,59461.0,0.88966452]
[1723729010499,0.001,59462.0,59461.0,1.50527306]
[1723729010708,0.001,59462.0,59461.0,1.92561222]
[1723729010936,0.01748942,59477.0,59474.0,0.168139]
[1723729011172,0.01748942,59477.0,59468.0,0.0337]
[1723729011435,0.00826,59481.0,59475.0,0.336273]
[1723729011663,0.00826,59481.0,59476.0,0.00791074]
[1723729011878,0.00826,59481.0,59471.0,0.336296]
[1723729012082,0.00826,59481.0,59472.0,0.00792504]
[1723729012287,0.00826,59481.0,59472.0,0.17607004]
[1723729012526,0.00826,59481.0,59472.0,0.00792504]
[1723729012779,0.00826,59481.0,59473.0,0.168142]
[1723729012978,0.0012,59479.0,59476.0,0.005]
[1723729013214,0.0012,59479.0,59477.0,0.168131]
[1723729013470,0.0002,59479.0,59477.0,0.00790716]
[1723729013684,0.0002,59479.0,59476.0,0.168132]
[1723729013922,0.0002,59479.0,59477.0,0.00790716]
[1723729014158,0.0002,59479.0,59472.0,0.168145]
[1723729014411,0.0002,59479.0,59469.0,0.50786254]
[1723729014412,0.0002,59479.0,59478.0,0.01086698]
[1723729014620,0.0002,59479.0,59473.0,0.168142]
[1723729014827,0.0002,59479.0,59478.0,0.01084343]
[1723729015027,0.0002,59479.0,59472.0,0.168144]
[1723729015229,0.0002,59479.0,59471.0,0.504443]
[1723729015437,0.0002,59479.0,59468.0,0.33631]
[1723729015438,0.08577727,59478.0,59472.0,0.01687562]
[1723729015664,0.023,59477.0,59472.0,0.01687562]
[1723729015874,0.023,59477.0,59472.0,0.006]
[1723729016091,0.0002,59479.0,59472.0,0.168144]
[1723729016289,0.0002,59479.0,59473.0,0.01086892]
[1723729016494,0.0022,59479.0,59471.0,0.013]
[1723729016699,0.0012,59479.0,59472.0,0.00869942]
[1723729016932,0.08577727,59478.0,59472.0,0.00869942]
[1723729017142,0.001,59477.0,59476.0,0.168135]
[1723729017349,0.001,59477.0,59476.0,0.945975]
[1723729017557,0.001,59477.0,59476.0,0.61838981]
[1723729017775,0.001,59477.0,59476.0,0.11615601]
[1723729017980,0.0012,59479.0,59476.0,0.11615601]
[1723729018195,0.08577727,59477.0,59476.0,0.01085601]
[1723729018605,0.0012,59479.0,59472.0,0.006]
[1723729018813,0.08577727,59478.0,59469.0,0.1053]
[1723729019021,0.08577727,59478.0,59473.0,0.01087212]
[1723729019229,0.08577727,59472.0,59467.0,0.0337]
[1723729019467,0.08577727,59472.0,59471.0,0.007]
[1723729019679,0.19577727,59478.0,59471.0,0.007]
[1723729019890,0.106301,59478.0,59468.0,0.0337]
[1723729020093,0.08777727,59478.0,59469.0,0.02489358]
[1723729020347,0.001,59478.0,59469.0,0.01689358]
[1723729020551,0.001,59478.0,59474.0,0.336277]
[1723729020803,0.0002,59479.0,59471.0,0.182149]
[1723729020804,0.001,59472.0,59471.0,0.182149]
[1723729021015,0.0002,59479.0,59471.0,0.61225254]
[1723729021223,0.08577727,59478.0,59471.0,0.272547]
[1723729021426,0.08577727,59472.0,59469.0,0.008]
[1723729021634,0.08677727,59478.0,59469.0,0.008]
[1723729021850,0.001,59478.0,59471.0,0.336298]
[1723729022063,0.08577727,59475.0,59472.0,0.01087748]
[1723729022271,0.00867773,59474.0,59471.0,0.006]
[1723729022482,0.023,59473.0,59471.0,0.006]
[1723729022692,0.19455454,59473.0,59471.0,0.006]
[1723729023117,0.001,59472.0,59471.0,0.02]
[1723729023341,0.001,59472.0,59471.0,0.03088285]
[1723729023559,0.0002,59479.0,59471.0,0.01088285]
[1723729023560,0.08577727,59474.0,59471.0,0.01088285]
[1723729023761,0.001,59473.0,59471.0,0.01888285]
[1723729023966,0.001,59473.0,59472.0,0.006]
[1723729024200,0.001,59475.0,59474.0,0.504421]
[1723729024414,0.001,59475.0,59474.0,0.932202]
[1723729024672,0.001,59475.0,59474.0,0.60678775]
[1723729024879,0.001,59475.0,59474.0,0.27050675]
[1723729025095,0.001,59475.0,59474.0,1.11462329]
[1723729025313,0.001,59475.0,59474.0,1.58840429]
[1723729025520,0.001026,59479.0,59478.0,1.322603]
[1723729025733,0.001026,59479.0,59478.0,1.83909177]
[1723729025954,0.05,59500.0,59498.0,0.168072]
[1723729026164,0.05,59500.0,59495.0,0.112]
[1723729026373,0.05,59500.0,59498.0,0.51495503]
[1723729026588,0.05,59500.0,59498.0,0.840362]
[1723729026814,0.05,59500.0,59498.0,0.51853438]
[1723729027028,0.05,59500.0,59498.0,0.01431738]
[1723729027253,0.0012,59499.0,59498.0,0.007]
[1723729027465,0.0012,59499.0,59498.0,0.86167938]
[1723729027904,0.0012,59499.0,59498.0,0.18938938]
[1723729028092,0.0012,59499.0,59498.0,0.02131738]
[1723729028303,0.08697727,59499.0,59498.0,0.02131738]
[1723729028718,0.08697727,59499.0,59498.0,0.007]
[1723729029343,0.101501,59499.0,59498.0,0.007]
[1723729029555,1.22508181,59499.0,59498.0,0.007]
[1723729029764,1.41488181,59499.0,59498.0,0.007]
[1723729029975,1.41488181,59499.0,59498.0,0.013]
[1723729030181,0.37997727,59499.0,59498.0,0.013]
[1723729030399,0.08597727,59499.0,59498.0,0.006]
[1723729030604,0.08597727,59499.0,59491.0,0.336183]
[1723729030821,0.08597727,59499.0,59489.0,0.0337]
[1723729030822,0.08577727,59493.0,59489.0,0.0337]
[1723729031037,0.08577727,59493.0,59492.0,0.0143112]
[1723729031259,0.1925,59492.0,59474.0,0.336279]
[1723729031473,0.08577727,59487.0,59478.0,0.336255]
[1723729031698,0.08577727,59487.0,59479.0,0.01441144]
[1723729031914,0.0863,59503.0,59480.0,0.36965454]
[1723729032167,0.0002,59499.0,59488.0,0.336198]
[1723729032381,0.0002,59499.0,59490.0,0.1108]
[1723729032596,0.0002,59499.0,59498.0,0.336145]
[1723729032809,0.0002,59499.0,59498.0,1.01191654]
[1723729033026,0.0002,59499.0,59498.0,1.02619263]
[1723729033481,0.0012,59499.0,59498.0,1.11349263]
[1723729033688,0.0012,59499.0,59498.0,1.22429263]
[1723729033901,0.0002,59499.0,59498.0,0.88814763]
[1723729034113,0.08597727,59499.0,59498.0,0.01427609]
[1723729034326,0.08697727,59499.0,59498.0,0.026]
[1723729034797,0.269571,59499.0,59498.0,0.026]
[1723729035000,0.08697727,59499.0,59498.0,0.026]
[1723729035866,0.25853181,59499.0,59498.0,0.026]
[1723729036077,0.78574181,59499.0,59498.0,0.026]
[1723729036299,1.56614681,59499.0,59498.0,0.026]
[1723729036511,1.66614681,59499.0,59498.0,0.026]
[1723729036717,1.50156135,59499.0,59498.0,0.026]
[1723729036931,1.66614681,59499.0,59498.0,0.026]
[1723729037142,0.336211,59487.0,59471.0,0.1690545]
[1723729037353,0.08577727,59486.0,59473.0,0.01444562]
[1723729037560,0.08577727,59480.0,59473.0,0.01444562]
[1723729037771,0.08577727,59479.0,59473.0,0.01444562]
[1723729037985,0.168136,59476.0,59471.0,0.0009075]
[1723729038201,0.023,59478.0,59471.0,0.0009075]
[1723729038682,0.1029,59492.0,59482.0,0.168117]
[1723729038893,0.103925,59499.0,59484.0,0.1033]
[1723729039123,0.103925,59499.0,59494.0,0.168083]
[1723729039124,0.001025,59499.0,59494.0,0.168083]
[1723729039363,0.001025,59499.0,59489.0,0.0884]
[1723729039592,0.001025,59499.0,59484.0,0.1033]
[1723729039931,0.001025,59499.0,59485.0,0.17155454]
[1723729040097,0.001025,59499.0,59498.0,0.612717]
[1723729040341,0.001025,59499.0,59498.0,0.696917]
[1723729040549,0.005025,59499.0,59498.0,0.360772]
[1723729040756,0.005025,59499.0,59498.0,0.1085]
[1723729040961,0.005025,59499.0,59493.0,0.168086]
[1723729041166,0.005025,59499.0,59492.0,0.357689]
[1723729041372,0.005025,59499.0,59492.0,0.1896]
[1723729041576,0.005025,59499.0,59494.0,0.168082]
[1723729041787,0.005025,59499.0,59498.0,0.504217]
[1723729042000,0.005025,59499.0,59498.0,0.505217]
[1723729042431,0.001025,59499.0,59498.0,0.841362]
[1723729042640,0.001025,59499.0,59498.0,1.01291654]
[1723729042847,0.001025,59499.0,59498.0,1.12151654]
[1723729043057,0.00826,59501.0,59499.0,0.84035]
[1723729043294,0.00826,59501.0,59499.0,1.38174454]
[1723729043498,0.00826,59501.0,59499.0,1.71788454]
[1723729043708,0.00826,59501.0,59499.0,1.80268454]
[1723729044116,0.00826,59501.0,59499.0,1.91578454]
[1723729044337,0.00826,59501.0,59499.0,2.25392454]
[1723729044543,0.00347925,59517.0,59514.0,0.168027]
[1723729044754,0.00347925,59517.0,59514.0,1.91350154]
[1723729044993,0.00347925,59517.0,59515.0,0.887122]
[1723729045207,0.00347925,59517.0,59515.0,1.50132554]
[1723729045414,0.00347925,59517.0,59516.0,1.622098]
[1723729045627,0.00347925,59517.0,59516.0,2.13969654]
[1723729045869,0.26666666,59538.0,59527.0,0.615871]
[1723729046141,0.26666666,59538.0,59527.0,0.44944454]
[1723729046380,0.26666666,59538.0,59519.0,0.109]
[1723729046381,0.08577727,59537.0,59519.0,0.109]
[1723729046631,0.08577727,59526.0,59520.0,0.17155454]
[1723729046839,0.08577727,59537.0,59527.0,0.16799]
[1723729047053,0.08577727,59537.0,59520.0,0.17155454]
[1723729047054,0.08577727,59527.0,59520.0,0.17155454]
[1723729047689,0.08577727,59527.0,59521.0,0.336014]
[1723729047899,0.08577727,59527.0,59522.0,0.17155454]
[1723729048110,0.08577727,59537.0,59522.0,0.17155454]
[1723729048316,0.08577727,59527.0,59522.0,0.17155454]
[1723729048946,0.08577727,59527.0,59520.0,0.014]
[1723729049162,0.08577727,59521.0,59520.0,0.014]
[1723729050044,0.26414141,59528.0,59520.0,0.014]
[1723729050261,0.26414141,59528.0,59521.0,0.17155454]
[1723729050473,0.26414141,59528.0,59527.0,0.16799]
[1723729050695,0.26414141,59528.0,59522.0,0.02799192]
[1723729050924,0.26414141,59528.0,59527.0,0.18194789]
[1723729051134,0.26414141,59528.0,59523.0,0.17155454]
[1723729051135,0.26414141,59528.0,59526.0,0.167992]
[1723729051349,0.26414141,59528.0,59527.0,0.01395789]
[1723729051350,0.26496641,59528.0,59527.0,0.01395789]
[1723729051774,0.26496641,59528.0,59527.0,0.68948343]
[1723729051990,0.26496641,59528.0,59527.0,1.13680654]
[1723729052221,0.26496641,59528.0,59527.0,1.15076443]
[1723729052421,0.26496641,59528.0,59527.0,1.57544543]
[1723729053108,0.26496641,59528.0,59527.0,1.89742643]
[1723729053541,0.26496641,59528.0,59527.0,1.56144543]
[1723729054226,0.26496641,59528.0,59527.0,1.89942643]
[1723729054428,0.00846,59539.0,59537.0,1.281137]
[1723729054640,0.00846,59539.0,59537.0,1.45269154]
[1723729054861,0.00846,59539.0,59537.0,1.46655235]
[1723729055083,0.00846,59539.0,59537.0,1.13062735]
[1723729055308,0.26166666,59538.0,59537.0,1.13062735]
[1723729055981,0.26166666,59538.0,59537.0,1.46655235]
[1723729056433,0.26166666,59538.0,59537.0,1.13062735]
[1723729056634,0.26166666,59538.0,59537.0,1.13862735]
[1723729056842,0.26166666,59538.0,59537.0,1.14562735]
[1723729057910,0.26166666,59538.0,59537.0,1.46655235]
[1723729058119,0.26166666,59538.0,59537.0,1.47855235]
[1723729058331,0.26166666,59538.0,59537.0,1.49255235]
[1723729059919,0.26166666,59538.0,59537.0,0.82070235]
[1723729060131,0.26166666,59538.0,59537.0,0.03986081]
[1723729060578,0.26166666,59538.0,59537.0,0.026]
[1723729060796,0.26166666,59538.0,59537.0,0.70144154]
[1723729061011,0.26166666,59538.0,59537.0,1.14416654]
[1723729061217,0.26166666,59538.0,59537.0,0.03756049]
[1723729061431,0.26166666,59538.0,59537.0,0.02556049]
[1723729062344,0.26166666,59538.0,59537.0,0.014]
[1723729063413,0.36839066,59538.0,59537.0,0.026]
[1723729064062,0.36839066,59538.0,59526.0,0.201692]
[1723729064277,0.0868,59537.0,59527.0,0.167989]
[1723729064496,0.254764,59537.0,59527.0,0.04533189]
[1723729064702,0.08577727,59534.0,59527.0,0.04533189]
[1723729064911,0.0868,59537.0,59527.0,0.04533189]
[1723729065121,0.0868,59537.0,59527.0,0.0337]
[1723729065334,0.36839066,59538.0,59531.0,0.0337]
[1723729065335,0.26249066,59538.0,59531.0,0.0337]
[1723729065515,0.26249066,59538.0,59537.0,0.16422389]
[1723729065772,0.26249066,59538.0,59537.0,0.51170938]
[1723729065986,0.26249066,59538.0,59537.0,0.68326392]
[1723729066219,0.26249066,59538.0,59537.0,1.35511392]
[1723729066428,0.26249066,59538.0,59537.0,1.43891392]
[1723729066859,0.26249066,59538.0,59537.0,0.68326392]
[1723729067062,0.26249066,59538.0,59537.0,1.01918892]
[1723729067482,0.26249066,59538.0,59537.0,0.02256049]
[1723729067922,0.26249066,59538.0,59537.0,0.03156049]
[1723729068132,0.26249066,59538.0,59537.0,0.02]
[1723729068133,0.34826793,59538.0,59537.0,0.02]
[1723729068569,0.26249066,59538.0,59537.0,0.02]
[1723729069266,0.34826793,59538.0,59537.0,0.02]
[1723729070345,0.26249066,59538.0,59537.0,0.02]
[1723729070596,0.53554966,59538.0,59537.0,0.02]
[1723729070803,0.36759066,59538.0,59537.0,0.02]
[1723729071013,0.53554966,59538.0,59537.0,0.02]
[1723729071232,0.69791208,59538.0,59537.0,0.02]
[1723729071464,0.86826566,59538.0,59537.0,0.02]
[1723729071765,0.167999,59524.0,59523.0,0.0009064]
[1723729071970,0.95312881,59524.0,59523.0,0.0009064]
[1723729072226,0.1918,59524.0,59523.0,0.0009064]
[1723729072468,0.1918,59524.0,59523.0,0.01257299]
[1723729072714,0.1918,59524.0,59523.0,0.0009064]
[1723729072945,0.36335454,59524.0,59523.0,0.0009064]
[1723729073181,1.22634954,59524.0,59523.0,0.0139064]
[1723729073425,0.89035154,59524.0,59523.0,0.0139064]
[1723729073665,1.72271768,59524.0,59523.0,0.0139064]
[1723729073893,2.05871568,59524.0,59523.0,0.0139064]
[1723729074140,1.69231568,59524.0,59523.0,0.0249064]
[1723729074361,1.69231568,59524.0,59523.0,0.0119064]
[1723729074362,2.02831368,59524.0,59523.0,0.0119064]
[1723729074592,0.951222,59515.0,59514.0,0.0337]
[1723729074828,0.168033,59512.0,59505.0,0.0337]
[1723729075066,0.19687727,59506.0,59505.0,0.0337]
[1723729075309,0.45070454,59506.0,59505.0,0.0337]
[1723729075563,0.30565454,59506.0,59505.0,0.0337]
[1723729075801,0.1111,59506.0,59505.0,0.0337]
[1723729076029,0.95485454,59506.0,59505.0,0.0337]
[1723729076276,0.47370454,59506.0,59505.0,0.0337]
[1723729076519,0.1111,59506.0,59505.0,0.0337]
[1723729076721,0.168056,59504.0,59498.0,0.0337]
[1723729076924,0.19455454,59503.0,59498.0,0.0337]
[1723729077173,0.19455454,59503.0,59492.0,0.51466362]
[1723729077174,0.0849,59506.0,59505.0,0.014]
[1723729077819,0.0859,59506.0,59505.0,0.028]
[1723729078038,0.0859,59506.0,59500.0,0.0337]
[1723729078039,0.29942637,59506.0,59500.0,0.0337]
[1723729078251,0.29942637,59506.0,59501.0,0.0337]
[1723729078252,0.275861,59502.0,59501.0,0.0337]
[1723729078491,0.78353854,59502.0,59501.0,0.0337]
[1723729078700,0.80653854,59502.0,59501.0,0.0337]
[1723729078915,0.80653854,59502.0,59489.0,0.0337]
[1723729078916,0.40235454,59502.0,59489.0,0.0337]
[1723729079149,0.38033181,59501.0,59487.0,0.03390236]
[1723729079360,0.38033181,59501.0,59490.0,0.0337]
[1723729079361,0.1,59501.0,59490.0,0.0337]
[1723729079571,0.1,59501.0,59498.0,0.014]
[1723729079993,0.1,59501.0,59491.0,0.0337]
[1723729080208,0.04731063,59500.0,59491.0,0.0337]
[1723729080418,0.08577727,59498.0,59491.0,0.0337]
[1723729080677,0.27565454,59497.0,59491.0,0.0337]
[1723729081104,0.44373054,59497.0,59491.0,0.0337]
[1723729081314,0.279489,59492.0,59491.0,0.0337]
[1723729081532,0.1114,59492.0,59491.0,0.0337]
[1723729081777,0.0811,59497.0,59491.0,0.0337]
[1723729081990,0.17155454,59496.0,59491.0,0.0337]
[1723729082204,0.19080454,59496.0,59491.0,0.0337]
[1723729082410,0.168087,59493.0,59491.0,0.0467]
[1723729082617,0.168084,59494.0,59491.0,0.0467]
[1723729082840,0.0831,59497.0,59491.0,0.0607]
[1723729083053,0.336162,59495.0,59491.0,0.0607]
[1723729083270,0.07461837,59494.0,59491.0,0.0477]
[1723729083485,0.33964054,59494.0,59491.0,0.0337]
[1723729083705,0.0811,59497.0,59491.0,0.0337]
[1723729083917,0.001,59493.0,59491.0,0.0477]
[1723729084440,0.001,59493.0,59492.0,2.31564574]
[1723729084571,0.01315235,59512.0,59492.0,1.57649874]
[1723729084781,0.01315235,59512.0,59494.0,0.0337]
[1723729085009,0.01315235,59512.0,59493.0,1.594072]
[1723729085010,0.08577727,59506.0,59497.0,0.0337]
[1723729085228,0.08577727,59506.0,59492.0,0.1133442]
[1723729085229,0.08577727,59499.0,59495.0,0.01202275]
[1723729085438,0.28355454,59505.0,59492.0,0.0337]
[1723729085439,0.25645454,59498.0,59492.0,0.0337]
[1723729085900,0.25645454,59498.0,59496.0,0.168077]
[1723729085901,0.0849,59498.0,59496.0,0.168077]
[1723729086115,0.0849,59498.0,59488.0,0.804802]
[1723729086116,0.1854,59504.0,59494.0,0.001]
[1723729086328,0.1178,59511.0,59498.0,0.336141]
[1723729086536,0.18571529,59511.0,59501.0,0.168062]
[1723729086758,0.0854,59512.0,59502.0,0.336121]
[1723729086967,0.235329,59522.0,59499.0,0.17155454]
[1723729086968,0.0919,59520.0,59499.0,0.17155454]
[1723729087178,0.17155454,59519.0,59499.0,0.17155454]
[1723729087611,0.001,59504.0,59503.0,0.815292]
[1723729087817,0.001,59504.0,59503.0,1.43406354]
[1723729088027,0.0919,59520.0,59507.0,0.336091]
[1723729088269,0.168017,59518.0,59503.0,0.1111]
[1723729088488,0.168017,59518.0,59500.0,1.2579]
[1723729088489,0.08577727,59509.0,59500.0,1.2579]
[1723729088699,0.17155454,59508.0,59499.0,0.0357]
[1723729088912,0.17155454,59508.0,59499.0,0.0347]
[1723729089129,0.08577727,59503.0,59499.0,0.0347]
[1723729089341,0.08577727,59503.0,59499.0,0.001]
[1723729089342,0.0917,59502.0,59499.0,0.001]
[1723729089580,0.17155454,59501.0,59499.0,0.001]
[1723729089791,0.0917,59502.0,59497.0,0.4686]
[1723729090003,0.0917,59508.0,59498.0,0.336143]
[1723729090215,0.17747727,59508.0,59507.0,0.001]
[1723729090426,0.0917,59508.0,59507.0,0.001]
[1723729090698,0.374479,59508.0,59507.0,0.001]
[1723729091119,0.206435,59508.0,59498.0,0.0337]
[1723729091122,0.37798954,59508.0,59498.0,0.0337]
[1723729091362,0.168051,59506.0,59497.0,0.4786]
[1723729091609,0.08577727,59502.0,59497.0,0.4686]
[1723729091838,0.56702732,59501.0,59497.0,0.4686]
[1723729092114,0.840392,59496.0,59495.0,1.2579]
[1723729092362,0.840392,59496.0,59487.0,0.00020236]
[1723729092363,0.504261,59493.0,59487.0,0.00020236]
[1723729092606,0.67581554,59493.0,59487.0,0.00020236]
[1723729092865,0.31432952,59493.0,59487.0,0.00020236]
[1723729093100,0.25385827,59495.0,59487.0,0.00020236]
[1723729093330,0.168087,59493.0,59487.0,0.00020236]
[1723729093590,1.01198954,59493.0,59487.0,0.00020236]
[1723729093811,1.46216354,59493.0,59487.0,0.00020236]
[1723729094027,2.19335762,59493.0,59492.0,0.0149064]
[1723729094683,2.52953162,59493.0,59492.0,0.0149064]
[1723729094902,2.03956354,59493.0,59492.0,0.0289064]
[1723729095120,0.49595454,59493.0,59492.0,0.0289064]
[1723729095345,0.64104154,59493.0,59492.0,0.0289064]
[1723729095568,1.64956354,59493.0,59492.0,0.0289064]
[1723729095818,1.31338954,59493.0,59492.0,0.0289064]
[1723729096114,1.82111808,59493.0,59492.0,0.0289064]
[1723729096610,2.52429208,59493.0,59492.0,0.0289064]
[1723729096901,2.54729208,59493.0,59492.0,0.0289064]
[1723729097430,2.54729208,59493.0,59479.0,0.4686]
[1723729097431,0.504354,59482.0,59479.0,0.4686]
[1723729097691,0.504354,59482.0,59477.0,0.52374962]
[1723729097692,1.24754454,59482.0,59477.0,0.52374962]
[1723729097976,1.03606299,59482.0,59477.0,0.009086]
[1723729098216,0.1,59482.0,59477.0,0.009086]
[1723729098509,0.1,59487.0,59477.0,0.009086]
[1723729098790,0.168118,59482.0,59477.0,0.009086]
[1723729099029,1.01314454,59482.0,59481.0,0.0289075]
[1723729099277,1.49524114,59482.0,59481.0,0.0289075]
[1723729099563,2.05377714,59482.0,59481.0,0.0289075]
[1723729099819,1.543903,59478.0,59477.0,0.009086]
[1723729100065,2.77471554,59478.0,59477.0,0.009086]
[1723729100288,3.09561554,59478.0,59477.0,0.009086]
[1723729100529,3.26717008,59478.0,59477.0,0.009086]
[1723729100778,2.75935754,59478.0,59477.0,0.009086]
[1723729101023,0.001,59482.0,59477.0,0.177216]
[1723729101269,0.001,59482.0,59478.0,0.1483]
[1723729101525,0.168096,59490.0,59478.0,0.1483]
[1723729101767,0.17155454,59492.0,59483.0,0.168114]
[1723729102023,0.0884,59499.0,59489.0,0.168095]
[1723729102237,0.0884,59499.0,59482.0,0.0337]
[1723729102238,0.168084,59494.0,59482.0,0.0337]
[1723729102454,0.168084,59494.0,59482.0,0.201817]
[1723729102673,0.10119365,59494.0,59484.0,0.0337]
[1723729102892,0.840447,59492.0,59491.0,0.0009075]
[1723729103121,1.01200154,59492.0,59491.0,0.0009075]
[1723729103350,1.11200154,59492.0,59491.0,0.0009075]
[1723729103569,1.21970154,59492.0,59491.0,0.0009075]
[1723729103799,1.55588054,59492.0,59491.0,0.0009075]
[1723729104028,1.75043508,59492.0,59491.0,0.0009075]
[1723729104247,2.08661408,59492.0,59491.0,0.0009075]
[1723729104466,2.22143508,59492.0,59491.0,0.0009075]
[1723729105159,2.51779308,59492.0,59477.0,0.009086]
[1723729105399,1.80063827,59478.0,59477.0,0.009086]
[1723729105624,2.79519281,59478.0,59477.0,0.009086]
[1723729105848,2.81819281,59478.0,59477.0,0.009086]
[1723729106295,2.87417242,59478.0,59477.0,0.009086]
[1723729107902,2.53791442,59478.0,59477.0,0.009086]
[1723729108121,2.48193481,59478.0,59477.0,0.009086]
[1723729108335,2.65348935,59478.0,59477.0,0.009086]
[1723729109008,2.98974735,59478.0,59477.0,0.009086]
[1723729109224,2.65348935,59478.0,59477.0,0.009086]
[1723729109445,2.98974735,59478.0,59477.0,0.009086]
[1723729109676,3.0457428,59478.0,59477.0,0.009086]
[1723729109902,0.83193699,59478.0,59477.0,0.009086]
[1723729110145,0.77594154,59478.0,59477.0,0.009086]
[1723729110411,1.46165294,59478.0,59477.0,0.009086]
[1723729111121,1.48465294,59478.0,59477.0,0.009086]
[1723729111343,0.45287894,59478.0,59477.0,0.009086]
[1723729111569,0.79013694,59478.0,59477.0,0.009086]
[1723729111998,1.12739494,59478.0,59477.0,0.009086]
[1723729112216,0.78993478,59478.0,59477.0,0.009086]
[1723729112443,0.79093478,59478.0,59477.0,0.009086]
[1723729112681,0.78993478,59478.0,59477.0,0.009086]
[1723729112903,0.28574994,59478.0,59477.0,0.009086]
[1723729113124,0.18674994,59478.0,59477.0,0.009086]
[1723729113566,0.35487894,59478.0,59477.0,0.009086]
[1723729113789,1.06457043,59478.0,59477.0,0.009086]
[1723729114055,1.20057043,59478.0,59477.0,0.009086]
[1723729114374,1.53782843,59478.0,59477.0,0.009086]
[1723729114842,1.63582843,59478.0,59477.0,0.009086]
[1723729115084,1.59865294,59478.0,59477.0,0.009086]
[1723729115342,0.28574994,59478.0,59477.0,0.009086]
[1723729115986,0.0151954,59478.0,59477.0,0.009086]
[1723729116204,0.002,59478.0,59477.0,0.009086]
[1723729116857,1.09897681,59478.0,59477.0,0.009086]
[1723729117076,1.24278688,59478.0,59477.0,0.009086]
[1723729117291,1.69894488,59478.0,59477.0,0.009086]
[1723729117505,1.79894488,59478.0,59477.0,0.009086]
[1723729117719,1.46268688,59478.0,59477.0,0.009086]
[1723729117952,1.25409954,59478.0,59477.0,0.009086]